bitfinex/quotes_ETHUSD_20260202
["timestamp","ask_amount","ask_price","bid_price","bid_amount"]
[1770045225833,0.1024,2345.5,2344.1,0.00080264]
[1770045226432,0.00080192,2345.7,2344.1,2.39521023]
[1770045226633,0.00080192,2345.7,2344.3,2.39440759]
[1770045227501,0.00080192,2345.7,2344.5,2.39440759]
[1770045228106,0.00080192,2345.7,2344.2,0.23952102]
[1770045228428,0.3359703,2345.5,2344.1,0.00080264]
[1770045228631,0.3359703,2345.5,2344.1,1.06728553]
[1770045228632,0.1024,2345.5,2344.1,1.06728553]
[1770045228936,0.1024,2345.5,2344.1,0.00080264]
[1770045229111,0.10320192,2345.7,2344.2,1.06645501]
[1770045229437,0.1024,2345.6,2344.2,0.53333756]
[1770045229637,0.1024,2345.4,2344.1,0.00080264]
[1770045229934,0.1024,2345.6,2344.3,1.82096156]
[1770045230135,0.90940891,2345.5,2344.3,1.82096156]
[1770045230332,0.1024,2345.6,2344.3,1.82096156]
[1770045230534,0.90939109,2345.5,2344.3,1.82096156]
[1770045230738,0.00080192,2345.7,2344.4,0.28873941]
[1770045231029,0.90936003,2345.6,2344.4,0.28873941]
[1770045231230,0.00080192,2345.7,2344.4,0.28873941]
[1770045231231,0.90936003,2345.5,2344.4,0.28873941]
[1770045231434,0.00080192,2345.7,2344.3,2.88737584]
[1770045231636,0.91073304,2345.6,2344.3,1.82096156]
[1770045231806,0.91073304,2345.5,2344.3,1.82096156]
[1770045232008,0.00080192,2345.7,2344.3,1.82096156]
[1770045232313,1.13883378,2345.7,2344.3,2.88737525]
[1770045232529,0.00080192,2345.7,2344.4,2.53627185]
[1770045232734,1.13883378,2345.7,2344.4,2.53627185]
[1770045233103,2.0510867,2345.7,2344.4,2.53627185]
[1770045233308,0.91225292,2345.6,2344.2,1.06644205]
[1770045233632,1.13803186,2345.6,2344.1,0.00080264]
[1770045233837,0.91225292,2345.5,2344.1,0.00080264]
[1770045234044,0.91225292,2345.4,2344.1,0.00080264]
[1770045234211,1.13883378,2345.7,2344.1,0.00080264]
[1770045234539,0.0011,2345.5,2344.1,2.53721707]
[1770045234750,2.05064867,2345.4,2344.1,1.8217642]
[1770045235144,10.94071667,2345.3,2344.1,0.00080264]
[1770045235442,10.94071667,2345.3,2343.4,0.00080192]
[1770045235443,1.13803186,2344.2,2343.4,0.00080192]
[1770045235610,1.13803186,2344.2,2342.7,0.00080168]
[1770045235611,1.14159043,2343.8,2342.7,0.00080168]
[1770045235937,1.40737199,2343.8,2342.7,0.00080168]
[1770045236236,0.1024,2344.1,2342.7,0.00080168]
[1770045236237,0.91338219,2343.7,2342.7,0.00080168]
[1770045236409,0.91338219,2343.6,2342.7,0.00080168]
[1770045236735,1.14159043,2343.9,2342.7,0.00080168]
[1770045236936,0.91302036,2343.8,2342.7,0.00080168]
[1770045237137,0.91302036,2343.7,2342.7,0.00080168]
[1770045237336,0.91302036,2343.6,2342.7,0.00080168]
[1770045237640,1.14159043,2343.9,2342.7,0.00080168]
[1770045237829,0.91276659,2343.8,2342.7,0.00080168]
[1770045238033,0.91276659,2343.7,2342.7,1.82176324]
[1770045238203,1.14239235,2344.2,2342.7,1.82176324]
[1770045238408,0.91231837,2344.1,2342.7,1.82176324]
[1770045238622,0.91231837,2344.0,2342.7,1.82176324]
[1770045238821,1.40879724,2344.2,2342.7,1.82176324]
[1770045238822,0.91231837,2343.9,2342.7,1.82176324]
[1770045239052,1.40879724,2344.2,2342.7,1.82176324]
[1770045239259,0.91219027,2344.1,2342.7,1.82176324]
[1770045239427,1.40879724,2344.2,2342.7,1.82176324]
[1770045239428,0.00080192,2344.2,2342.7,1.82176324]
[1770045239626,0.00080192,2344.2,2342.9,1.82096156]
[1770045240331,1.14239235,2344.2,2342.7,0.00080168]
[1770045240543,1.14159043,2343.9,2342.7,0.00080168]
[1770045240757,0.91216686,2343.8,2342.7,0.00080168]
[1770045240970,0.00080168,2343.5,2342.4,0.001]
[1770045241271,0.00080168,2343.5,2342.4,1.82196156]
[1770045241272,0.91216686,2343.4,2342.4,1.82196156]
[1770045241475,0.00080192,2344.2,2342.8,1.82096156]
[1770045241633,0.00080192,2344.2,2343.0,1.82096156]
[1770045241827,0.91185778,2344.1,2343.0,1.82096156]
[1770045242022,0.00080192,2344.2,2343.0,1.82096156]
[1770045242277,0.91227606,2344.1,2343.0,1.82096156]
[1770045242464,0.00080192,2344.2,2343.0,1.82096156]
[1770045242685,0.00080192,2344.2,2343.1,1.82096156]
[1770045242873,2.9983981,2345.1,2343.1,1.82096156]
[1770045242874,1.14269043,2345.5,2343.5,1.82096156]
[1770045243152,1.14269043,2345.5,2343.4,2.19546964]
[1770045243153,0.0011,2345.5,2344.2,1.82096156]
[1770045243354,0.91216324,2345.4,2344.2,1.82096156]
[1770045243572,0.0011,2345.5,2344.2,1.82096156]
[1770045243776,0.91216876,2345.4,2344.3,1.06641641]
[1770045243964,0.0011,2345.5,2344.3,1.78182738]
[1770045244164,0.0011,2347.6,2345.0,1.82096156]
[1770045244165,1.14159043,2346.3,2345.0,1.82096156]
[1770045244472,1.14239259,2346.4,2345.0,1.82096156]
[1770045244660,0.00080216,2346.4,2345.0,1.82096156]
[1770045245745,0.00080216,2346.4,2345.2,1.82096156]
[1770045245951,0.36501099,2346.9,2345.4,1.82096156]
[1770045246253,0.36501099,2346.9,2345.7,1.82096156]
[1770045246454,0.00190264,2347.1,2345.9,1.82096156]
[1770045247482,0.0011,2347.4,2346.0,1.82096156]
[1770045247666,0.0011,2347.4,2346.5,1.06541657]
[1770045247866,0.0011,2347.4,2346.5,1.78032101]
[1770045248079,0.0011,2347.4,2346.3,0.00080288]
[1770045248254,0.0011,2347.4,2346.4,1.06544579]
[1770045248575,0.0011,2347.4,2346.3,1.06629307]
[1770045248782,0.0011,2347.4,2346.3,0.00080288]
[1770045249185,0.0011,2347.4,2346.5,1.82096156]
[1770045249354,0.0011,2347.6,2346.6,2.10960362]
[1770045249548,0.0011,2347.6,2346.8,1.82096156]
[1770045250356,0.00080432,2347.8,2346.9,1.82096156]
[1770045250984,0.36472286,2348.4,2347.1,1.82096156]
[1770045251880,0.36472286,2348.4,2347.2,2.8860604]
[1770045252178,0.36472286,2348.4,2347.3,0.71464558]
[1770045252768,0.36472286,2348.4,2347.2,1.82096156]
[1770045253884,0.36472286,2348.4,2347.4,1.82096156]
[1770045254887,0.00080336,2349.3,2347.5,2.71496156]
[1770045255186,0.00080336,2349.3,2347.8,1.82176492]
[1770045255886,0.00080336,2349.3,2347.9,2.88574285]
[1770045256178,0.00080336,2349.3,2348.0,2.5355287]
[1770045256380,0.00080336,2349.3,2348.1,1.82096156]
[1770045256783,0.00080168,2350.0,2348.1,1.82096156]
[1770045257086,0.00080168,2350.0,2348.6,1.82096156]
[1770045257311,0.00080168,2350.0,2348.8,1.82096156]
[1770045257582,0.00080168,2350.0,2348.7,0.894]
[1770045257583,0.00080168,2350.0,2348.9,2.09245772]
[1770045257787,0.00080168,2350.0,2348.7,0.894]
[1770045258084,0.00080168,2350.0,2348.7,1.95841645]
[1770045258286,0.00080168,2350.0,2348.7,1.95840742]
[1770045258486,0.00080168,2350.0,2348.8,1.82096156]
[1770045260092,0.00080168,2350.0,2348.7,1.95839644]
[1770045260295,0.00080168,2350.0,2348.7,0.894]
[1770045260463,0.00080168,2350.0,2348.7,1.95839722]
[1770045260664,0.00080168,2350.0,2348.8,1.06435519]
[1770045260861,0.00080168,2350.0,2348.7,1.95838918]
[1770045261195,0.00080168,2350.0,2348.8,1.06436699]
[1770045261387,0.00080168,2350.0,2348.8,2.63141605]
[1770045261574,0.00080168,2350.0,2348.9,0.77829092]
[1770045261772,0.2510706,2350.3,2349.0,1.56704906]
[1770045261973,2.7970925,2352.0,2349.5,1.56704906]
[1770045262165,0.2225255,2352.0,2349.7,1.56704906]
[1770045262367,9.56281521,2352.6,2349.9,1.56704906]
[1770045262594,0.35405028,2352.6,2350.1,1.56704906]
[1770045262773,0.1024,2352.5,2350.1,1.56704906]
[1770045262968,5.517127,2352.5,2350.1,1.56704906]
[1770045263167,8.868918,2352.4,2350.3,1.56704906]
[1770045263499,8.868918,2352.4,2350.2,0.893]
[1770045263500,1.04458668,2352.3,2350.4,1.81305397]
[1770045263697,2.974419,2352.5,2350.4,1.81305397]
[1770045263883,0.1024,2352.4,2350.4,1.81305397]
[1770045264085,0.0011,2351.0,2350.5,1.06360348]
[1770045264278,23.54258178,2352.3,2350.4,0.24600491]
[1770045264478,0.1024,2352.5,2350.5,1.56704906]
[1770045266105,3.952247,2352.2,2350.4,1.06362226]
[1770045266407,0.1024,2352.1,2350.4,1.0636268]
[1770045266593,0.1024,2352.1,2350.5,1.06360139]
[1770045266794,0.1024,2352.1,2350.3,1.06368589]
[1770045267115,0.1024,2352.1,2350.5,1.06360126]
[1770045267410,0.1024,2352.1,2350.3,4.25476447]
[1770045267411,0.1024,2352.3,2350.4,1.06362008]
[1770045267613,0.1024,2352.1,2350.4,1.06361955]
[1770045268182,1.67934878,2352.1,2350.2,0.893]
[1770045268384,1.1121684,2352.3,2350.2,0.893]
[1770045268385,0.1024,2351.7,2350.2,0.893]
[1770045268627,1.1121684,2352.3,2350.2,0.893]
[1770045268628,1.1121684,2352.3,2350.3,1.56704906]
[1770045268833,1.1121684,2352.3,2350.2,1.95672813]
[1770045268834,0.1024,2352.2,2350.4,1.91942678]
[1770045269157,0.1024,2352.2,2350.4,0.35237772]
[1770045269336,0.1024,2352.2,2350.4,1.91942678]
[1770045269539,0.35405028,2352.6,2350.4,1.91942678]
[1770045269540,0.1024,2352.4,2350.4,1.91942678]
[1770045269742,10.88811371,2352.4,2350.4,1.91942678]
[1770045269923,1.08881137,2352.3,2350.4,0.35237772]
[1770045270253,1.08881137,2352.3,2350.5,1.06360348]
[1770045270565,1.08881137,2352.3,2350.5,2.63065254]
[1770045270566,0.1024,2352.2,2350.5,2.63065254]
[1770045271522,0.1024,2352.5,2350.6,1.56704906]
[1770045272149,0.2335703,2352.4,2350.4,0.35237772]
[1770045272359,0.2335703,2352.4,2350.6,1.06354934]
[1770045272562,0.2335703,2352.4,2350.6,1.06355212]
[1770045273259,1.81051908,2352.4,2350.4,4.25452844]
[1770045273574,0.1024,2352.3,2350.6,1.0635215]
[1770045273863,0.1024,2352.3,2350.7,0.53177545]
[1770045274029,0.1024,2352.3,2350.6,1.0635215]
[1770045274365,0.1024,2352.3,2350.4,4.25456785]
[1770045274528,0.1024,2352.3,2350.5,1.56704906]
[1770045275426,0.1024,2352.2,2350.5,1.56704906]
[1770045275851,0.1024,2352.2,2349.9,4.25532571]
[1770045275852,1.81051908,2351.9,2350.1,4.25502845]
[1770045276051,9.56281521,2352.6,2350.3,1.06368296]
[1770045276052,1.57694878,2352.4,2350.3,1.06368296]
[1770045276356,0.1035,2352.2,2350.5,1.06360348]
[1770045278635,0.1024,2352.1,2350.4,1.06361227]
[1770045278844,0.1024,2352.1,2350.5,1.56704906]
[1770045279045,0.0011,2352.4,2351.4,1.56704906]
[1770045279433,1.14159043,2353.9,2351.9,1.56704906]
[1770045279632,1.79926919,2354.1,2351.9,2.45904906]
[1770045279868,1.68882967,2354.0,2352.0,0.24590491]
[1770045280072,0.1024,2353.8,2352.0,0.24590491]
[1770045280262,0.54723924,2354.0,2352.2,1.56704906]
[1770045280465,2.12418802,2354.0,2352.0,1.30882723]
[1770045280665,2.80777143,2353.9,2352.0,1.30881937]
[1770045280852,0.90424481,2353.8,2352.0,1.30881937]
[1770045281059,1.57694878,2353.7,2351.9,0.892]
[1770045281249,4.215095,2353.5,2351.9,0.892]
[1770045281565,1.57694878,2353.7,2351.9,0.892]
[1770045281874,0.90453218,2353.6,2351.9,1.95497029]
[1770045282176,1.15268028,2353.5,2352.0,1.06292364]
[1770045282378,0.32657784,2353.9,2352.1,1.56704906]
[1770045282548,1.39115541,2355.0,2353.5,1.56704906]
[1770045282757,5.25735102,2355.9,2353.6,0.892]
[1770045282758,0.22218396,2355.4,2353.6,0.892]
[1770045283091,1.62525731,2355.2,2353.7,0.24590491]
[1770045283385,1.62525731,2354.9,2353.3,0.892]
[1770045283610,1.62525731,2354.4,2353.2,0.0008]
[1770045283766,1.62525731,2354.7,2353.2,0.0008]
[1770045283950,1.62525731,2354.7,2353.3,0.38091602]
[1770045283951,0.52150853,2354.6,2353.3,0.38091602]
[1770045284149,1.62525731,2354.7,2353.4,0.38091602]
[1770045284344,1.62525731,2354.7,2353.5,0.38091602]
[1770045284560,0.1024,2354.6,2353.2,0.0008]
[1770045284761,1.62525731,2354.5,2353.2,0.0008]
[1770045284962,1.62525731,2354.4,2353.2,0.0008]
[1770045285760,0.1024,2354.2,2353.2,0.0008]
[1770045285963,1.99085012,2354.2,2353.2,0.0008]
[1770045286194,1.72765731,2354.2,2353.2,0.0008]
[1770045286687,13.01441626,2355.5,2353.2,0.0008]
[1770045286688,1.62525731,2354.9,2353.2,0.0008]
[1770045288003,1.62525731,2355.4,2353.2,0.0008]
[1770045288177,1.62525731,2355.9,2353.4,0.01712109]
[1770045288512,2.52902079,2355.8,2353.8,0.01712109]
[1770045288675,9.20876493,2357.3,2354.9,0.01712109]
[1770045288874,0.90588816,2357.4,2355.3,9.20876493]
[1770045289119,0.90588816,2357.4,2355.0,0.37968067]
[1770045289120,0.22197135,2357.2,2355.4,0.39680176]
[1770045289275,1.62525731,2358.2,2355.7,0.01712109]
[1770045289475,1.62525731,2358.2,2355.0,0.11952109]
[1770045289697,1.62525731,2357.6,2355.1,0.3779648]
[1770045289898,1.62525731,2357.3,2354.5,2.5320353]
[1770045290085,0.1024,2356.4,2354.5,2.5320353]
[1770045290285,0.1024,2356.6,2354.5,2.5320353]
[1770045290286,0.1024,2356.2,2354.5,2.5320353]
[1770045290683,1.62525731,2356.3,2354.8,0.01712109]
[1770045290883,1.62525731,2356.3,2354.6,0.01712109]
[1770045291121,0.0011,2354.7,2354.6,0.78581134]
[1770045291481,1.62525731,2356.3,2354.5,2.5320353]
[1770045291676,0.1024,2356.1,2354.5,2.5290353]
[1770045291895,0.0011,2354.9,2354.5,2.5290353]
[1770045292203,0.0011,2354.9,2354.5,3.59081415]
[1770045292408,1.62525731,2356.1,2354.5,3.59081415]
[1770045292595,0.0011,2355.9,2354.6,0.78380403]
[1770045292992,0.0011,2355.9,2354.5,2.5290353]
[1770045293327,0.0011,2355.9,2354.5,3.59081806]
[1770045293678,0.0011,2355.9,2354.5,3.5908264]
[1770045293887,0.0011,2355.9,2354.5,2.5290353]
[1770045294076,0.0011,2355.9,2354.5,3.5908247]
[1770045294274,0.0011,2355.9,2354.6,0.35908247]
[1770045294717,1.62635731,2355.9,2354.5,2.5290353]
[1770045295412,1.62635731,2355.9,2354.5,2.34156071]
[1770045295413,1.62525731,2355.5,2354.5,2.34156071]
[1770045295594,1.62525731,2355.5,2353.7,1.06213492]
[1770045295996,1.62525731,2355.5,2353.4,5.14014425]
[1770045296331,1.62525731,2355.3,2353.4,0.891]
[1770045297089,0.1024,2355.6,2353.4,0.891]
[1770045297090,1.62525731,2354.9,2353.4,0.891]
[1770045297292,1.62525731,2354.9,2353.2,0.0008]
[1770045297293,4.1672123,2354.8,2353.2,0.0008]
[1770045297496,0.1024,2355.0,2352.7,1.33633407]
[1770045297497,1.62485731,2354.2,2352.7,1.33633407]
[1770045297695,1.62485731,2353.6,2351.6,1.915]
[1770045298003,1.4412437,2354.0,2352.2,1.0628037]
[1770045298217,1.3388437,2353.6,2351.9,1.06294044]
[1770045298408,1.93113477,2353.5,2351.7,1.06306076]
[1770045298724,0.2335703,2353.9,2351.2,4.25309702]
[1770045298725,1.4412437,2353.3,2351.2,4.25309702]
[1770045298926,1.4412437,2353.3,2351.6,1.06310584]
[1770045299117,1.4412437,2353.3,2351.4,1.06317026]
[1770045299301,1.3388437,2353.1,2351.2,1.06326134]
[1770045299504,1.3388437,2352.9,2351.3,0.53165842]
[1770045299699,1.3388437,2352.9,2351.6,1.06309842]
[1770045299902,1.3388437,2352.9,2351.3,1.06320995]
[1770045300314,1.3388437,2353.8,2351.1,1.06333205]
[1770045300512,1.3388437,2353.8,2351.3,0.10374053]
[1770045300513,1.3388437,2353.6,2351.3,0.10374053]
[1770045300826,1.3388437,2353.2,2351.1,1.06333205]
[1770045300994,1.3388437,2352.9,2351.2,0.53166603]
[1770045301198,1.3388437,2352.9,2351.0,1.06335825]
[1770045301401,1.572414,2352.8,2350.9,0.891]
[1770045301606,1.3388437,2352.8,2351.0,1.06335892]
[1770045301819,1.4412437,2352.7,2350.9,0.891]
[1770045302021,1.3388437,2352.1,2350.6,0.001]
[1770045302199,1.3388437,2353.8,2351.0,1.06336658]
[1770045302398,9.20876493,2353.9,2350.9,4.25350914]
[1770045302399,1.3388437,2352.8,2351.2,1.06328683]
[1770045302598,1.3388437,2352.8,2351.1,1.59499897]
[1770045302803,1.3388437,2352.8,2351.1,0.53168757]
[1770045303032,1.3388437,2352.8,2351.1,1.06330931]
[1770045303235,1.3388437,2352.8,2350.9,4.25362985]
[1770045303435,9.44233523,2353.4,2351.1,1.06332704]
[1770045303436,0.1024,2353.3,2351.1,1.06332704]
[1770045303621,4.22237256,2354.7,2351.2,0.891]
[1770045303622,1.4412437,2353.2,2351.2,0.891]
[1770045303935,1.4412437,2353.0,2351.2,0.891]
[1770045304434,1.4412437,2352.8,2350.7,1.06348546]
[1770045304601,1.4412437,2352.3,2351.4,0.001]
[1770045304806,1.4412437,2352.3,2350.6,0.001]
[1770045304999,1.3388437,2352.3,2351.0,1.06336234]
[1770045305214,1.3388437,2352.3,2351.0,1.0633435]
[1770045305416,1.4412437,2352.7,2351.2,1.06328512]
[1770045305600,1.4412437,2352.7,2351.3,0.53174722]
[1770045305918,1.4412437,2352.7,2351.1,0.001]
[1770045306314,1.3388437,2353.5,2351.1,4.25414732]
[1770045306549,1.3388437,2353.1,2351.2,0.891]
[1770045307199,1.4412437,2353.0,2351.2,0.891]
[1770045307405,1.3388437,2353.0,2351.2,0.891]
[1770045307804,1.3388437,2353.1,2351.2,0.51451473]
[1770045308008,1.3388437,2353.1,2351.1,0.001]
[1770045308308,1.3388437,2352.9,2351.1,0.001]
[1770045308503,1.3388437,2352.7,2351.1,0.001]
[1770045308819,1.3388437,2352.5,2351.1,0.001]
[1770045309321,1.4412437,2353.0,2351.1,0.001]
[1770045309638,1.4412437,2352.9,2351.1,0.001]
[1770045309937,1.3388437,2352.7,2351.1,0.001]
[1770045310937,1.3388437,2352.5,2351.1,0.001]
[1770045311139,1.3388437,2352.3,2351.1,0.001]
[1770045311743,1.3388437,2351.7,2349.4,0.001]
[1770045311916,1.3388437,2351.5,2349.8,1.06391799]
[1770045312237,1.3388437,2351.5,2349.4,0.001]
[1770045312410,1.3388437,2351.5,2349.4,4.25737517]
[1770045312605,1.3388437,2351.3,2349.5,0.54100961]
[1770045312814,1.3388437,2351.1,2349.5,0.54100961]
[1770045313016,9.56176538,2351.8,2349.4,0.001]
[1770045313017,0.1024,2350.9,2349.4,0.001]
[1770045313541,1.3388437,2351.6,2349.4,0.001]
[1770045313739,3.0134404,2352.5,2349.4,0.001]
[1770045313740,1.3388437,2351.3,2349.4,1.57852824]
[1770045314321,1.3388437,2351.3,2349.4,0.001]
[1770045316210,0.1024,2351.7,2349.4,0.08961944]
[1770045316409,0.1024,2351.6,2349.6,1.06401089]
[1770045316821,1.4412437,2351.6,2349.6,1.06401089]
[1770045317628,1.3388437,2352.1,2349.7,0.08861944]
[1770045317853,1.3388437,2352.9,2350.4,0.08861944]
[1770045318026,1.3388437,2352.7,2350.5,0.892]
[1770045318226,1.3388437,2352.6,2350.5,0.892]
[1770045318417,1.3388437,2352.6,2350.6,1.06355824]
[1770045319318,0.0011,2352.5,2350.6,1.06355824]
[1770045319521,0.0011,2352.5,2350.7,0.62097912]
[1770045319949,0.97274532,2352.5,2350.7,0.62097912]
[1770045320458,0.97274532,2352.5,2350.8,1.06346775]
[1770045321052,0.0011,2352.5,2350.8,1.06346775]
[1770045321351,0.0011,2352.5,2351.0,0.01712109]
[1770045321540,0.0011,2352.5,2350.8,1.06346775]
[1770045321857,0.0011,2352.5,2350.9,0.59383179]
[1770045321858,0.97274532,2352.5,2350.9,0.59383179]
[1770045322164,0.0011,2352.5,2350.9,0.59383179]
[1770045322321,0.0011,2352.5,2351.0,0.10574053]
[1770045322525,0.0011,2352.5,2351.5,1.06315118]
[1770045322755,0.0011,2352.5,2351.5,1.95515118]
[1770045323055,0.0011,2352.5,2351.6,0.62077559]
[1770045323649,0.0011,2352.5,2350.7,0.62097912]
[1770045323952,0.0011,2352.5,2351.2,4.25302629]
[1770045324151,0.0011,2352.5,2351.4,1.06317572]
[1770045324524,0.0011,2352.5,2351.2,4.25278557]
[1770045324730,0.0011,2352.5,2351.1,4.25278557]
[1770045324951,0.0011,2352.5,2351.0,1.06334339]
[1770045325153,0.0011,2352.5,2351.0,1.06335926]
[1770045325154,0.97274532,2352.5,2351.0,1.06335926]
[1770045325749,0.97164532,2352.3,2349.9,0.08861944]
[1770045325937,0.0011,2352.5,2349.9,0.08861944]
[1770045325938,0.97164532,2352.1,2350.5,1.06357789]
[1770045326236,0.0011,2352.5,2350.4,1.06364347]
[1770045326237,1.88166752,2352.0,2350.4,1.06364347]
[1770045326437,0.9100222,2351.9,2350.6,4.25413074]
[1770045326668,0.97164532,2352.4,2350.8,4.25380588]
[1770045326959,0.97164532,2352.4,2350.7,1.48889259]
[1770045326960,0.9100981,2352.3,2350.7,1.48889259]
[1770045327163,0.9100981,2352.2,2350.7,1.48889259]
[1770045327331,0.91179826,2352.1,2350.7,1.48889259]
[1770045327661,0.97164532,2351.9,2349.8,0.001]
[1770045327858,1.50243326,2352.1,2349.8,0.001]
[1770045327859,0.97164532,2351.5,2349.8,0.001]
[1770045328168,1.88349797,2351.4,2349.8,1.06490903]
[1770045328328,1.25044577,2351.3,2349.8,1.06490782]
[1770045328528,0.91185265,2351.2,2349.8,0.001]
[1770045329144,0.97164532,2351.1,2349.8,0.001]
[1770045329326,0.91185265,2351.0,2349.8,0.001]
[1770045330061,0.97164532,2350.7,2349.5,0.001]
[1770045330367,0.97164532,2350.5,2349.5,0.001]
[1770045330688,0.91185265,2350.4,2349.5,0.001]
[1770045330834,1.07404532,2351.0,2349.5,0.001]
[1770045330835,0.97164532,2351.0,2349.5,0.001]
[1770045331035,0.9120547,2350.9,2349.5,0.001]
[1770045331230,0.97164532,2350.7,2349.5,0.001]
[1770045331436,0.9120547,2350.6,2349.5,0.001]
[1770045331664,0.9120547,2350.5,2349.5,0.001]
[1770045331964,0.9120547,2350.4,2349.5,0.001]
[1770045332170,1.50243326,2351.1,2349.5,0.001]
[1770045332471,0.97164532,2351.2,2349.5,0.001]
[1770045332472,0.97164532,2350.9,2349.5,0.001]
[1770045332678,0.97164532,2350.3,2348.9,0.001]
[1770045332838,0.91151049,2350.2,2348.9,0.001]
[1770045333244,0.91151049,2350.2,2350.0,0.001]
[1770045333478,0.97164532,2350.3,2348.9,0.001]
[1770045333699,0.91101856,2350.2,2348.9,0.001]
[1770045333987,0.97164532,2350.0,2348.9,0.001]
[1770045334144,0.91107202,2349.9,2348.9,0.001]
[1770045335104,0.91107202,2349.9,2348.0,1.06473594]
[1770045335105,0.01712109,2347.5,2346.3,0.28924143]
[1770045335381,0.00080288,2347.1,2346.4,1.0]
[1770045335541,0.00080456,2347.8,2346.5,1.00448669]
[1770045335746,0.00080456,2347.8,2346.6,1.13641547]
[1770045335747,2.41213783,2347.7,2346.6,1.13641547]
[1770045335973,0.90970457,2347.6,2346.5,1.00448669]
[1770045336214,1.50323782,2347.8,2346.4,1.06546198]
[1770045336215,0.00080456,2347.8,2346.7,0.97667221]
[1770045336341,0.00080456,2347.8,2346.8,0.892]
[1770045336543,0.00080456,2347.8,2346.5,0.6220113]
[1770045336756,1.60563782,2347.8,2346.3,0.00080312]
[1770045336986,1.50243326,2347.3,2346.3,0.00080312]
[1770045337288,1.50243326,2347.6,2346.3,0.00080312]
[1770045337454,0.00080456,2347.8,2346.5,1.06538086]
[1770045337642,1.02841059,2347.9,2346.6,1.6682634]
[1770045337850,1.54759166,2348.2,2347.1,0.97667221]
[1770045338072,1.54759166,2348.2,2347.2,0.892]
[1770045338273,1.54759166,2348.2,2347.1,0.95955112]
[1770045338474,1.54759166,2348.2,2347.0,0.0008048]
[1770045338678,0.00080336,2348.6,2347.3,0.01712109]
[1770045338875,0.00080336,2348.6,2347.3,0.5418197]
[1770045339076,0.00080336,2348.6,2347.4,0.892]
[1770045339283,0.00080336,2348.6,2347.4,1.4338197]
[1770045339482,0.00080336,2348.6,2347.4,1.41669861]
[1770045339992,0.0008036,2349.3,2347.8,0.0008036]
[1770045340181,0.0008036,2349.3,2348.0,0.01712109]
[1770045340881,0.00080192,2350.0,2348.0,0.01712109]
[1770045340882,0.00080192,2350.0,2348.5,0.54101658]
[1770045341180,0.35095966,2350.3,2349.3,0.01712109]
[1770045341344,1.50243326,2351.1,2349.3,0.01712109]
[1770045341547,1.93480114,2351.1,2349.3,0.01712109]
[1770045341793,1.50243326,2351.0,2349.2,0.00080216]
[1770045341960,0.43236788,2351.1,2349.2,0.00080216]
[1770045341961,0.01712109,2350.8,2349.2,0.00080216]
[1770045342469,1.93480114,2351.1,2349.2,0.00080216]
[1770045342665,1.54847846,2351.0,2349.2,0.00080216]
[1770045343354,1.12978939,2351.6,2349.7,0.01712109]
[1770045343550,1.13088939,2352.3,2350.4,0.01712109]
[1770045343781,0.0011,2352.3,2351.2,0.01712109]
[1770045344606,0.0011,2352.3,2350.6,0.52228973]
[1770045344607,0.0011,2352.3,2351.3,0.892]
[1770045344779,0.0011,2352.3,2351.4,1.06319639]
[1770045344980,0.0011,2352.3,2351.4,2.10927314]
[1770045345183,0.0041,2353.5,2351.5,0.52008973]
[1770045345421,0.0041,2353.5,2351.9,0.01712109]
[1770045345621,0.0041,2353.5,2352.1,0.01712109]
[1770045345786,0.0041,2353.5,2352.0,0.892]
[1770045346692,0.0041,2353.5,2352.1,1.06287997]
[1770045346893,0.01712109,2353.4,2352.0,1.06290299]
[1770045347107,0.0011,2352.3,2352.0,1.06290299]
[1770045347317,0.0011,2352.3,2351.2,4.25300336]
[1770045347318,0.0011,2352.3,2350.7,4.2540242]
[1770045347532,0.0011,2352.3,2350.4,4.77345566]
[1770045347731,0.0011,2352.3,2350.4,4.25446593]
[1770045347930,0.0011,2352.3,2350.9,1.06339118]
[1770045348138,0.0011,2352.3,2350.5,0.892]
[1770045348320,0.0011,2352.3,2351.1,1.06330169]
[1770045348632,0.0011,2352.3,2351.1,4.25330388]
[1770045348836,0.0011,2352.3,2350.6,1.06355824]
[1770045349010,0.0011,2352.3,2350.8,0.01712109]
[1770045349941,0.0011,2352.3,2350.7,1.59427675]
[1770045350143,1.13088939,2353.3,2351.6,0.01712109]
[1770045350313,0.0011,2353.3,2351.7,0.892]
[1770045350728,0.0011,2353.3,2351.8,1.06301556]
[1770045351820,1.60483326,2354.1,2351.8,1.06301556]
[1770045351821,1.12978939,2354.2,2352.4,0.01712109]
[1770045352136,3.0134404,2354.8,2352.1,9.57888647]
[1770045352137,0.26322227,2354.1,2352.5,0.01712109]
[1770045352306,0.93281027,2354.6,2352.2,0.01712109]
[1770045352502,0.93281027,2354.6,2352.5,0.01712109]
[1770045352809,0.93281027,2354.6,2352.6,1.07977517]
[1770045353247,0.0011,2354.7,2353.2,0.01712109]
[1770045353424,1.12978939,2355.8,2354.4,0.01712109]
[1770045353633,1.12978939,2355.8,2354.1,0.01712109]
[1770045353634,0.30305615,2355.9,2354.5,0.90912109]
[1770045353937,0.93281027,2356.4,2354.5,0.892]
[1770045354125,0.93281027,2356.2,2353.7,0.01712109]
[1770045354441,0.1024,2356.3,2353.7,0.01712109]
[1770045354442,0.93281027,2355.8,2353.8,0.892]
[1770045354952,0.93281027,2355.8,2354.0,0.01712109]
[1770045355131,0.93281027,2355.8,2354.0,0.62194571]
[1770045355334,0.93281027,2355.8,2354.0,0.6390668]
[1770045355553,0.01712109,2355.5,2354.0,0.62194571]
[1770045355741,0.93281027,2355.8,2354.0,0.62194571]
[1770045356821,0.93281027,2355.6,2353.9,1.06206654]
[1770045357022,0.93281027,2354.7,2353.6,0.891]
[1770045357249,0.93281027,2356.0,2354.0,1.07913822]
[1770045357547,0.93281027,2356.0,2354.0,1.06201713]
[1770045357714,0.93281027,2356.0,2354.1,0.53101055]
[1770045358550,0.93281027,2356.0,2354.3,0.01712109]
[1770045358776,0.93281027,2356.0,2354.2,1.06193186]
[1770045359118,0.93281027,2356.0,2354.3,0.891]
[1770045359764,0.93281027,2356.0,2354.2,1.06193186]
[1770045359922,0.93391027,2355.6,2354.2,2.96177159]
[1770045360310,0.93391027,2355.6,2353.4,4.24916038]
[1770045360564,0.93391027,2355.6,2353.9,1.06203341]
[1770045360767,0.93391027,2355.6,2353.1,4.26682528]
[1770045360768,0.93281027,2355.4,2353.1,4.24955852]
[1770045360935,0.93281027,2355.2,2353.1,4.24955852]
[1770045361112,0.93281027,2355.0,2353.1,4.24955852]
[1770045361436,0.93281027,2355.0,2353.1,4.8698572]
[1770045361823,0.93281027,2354.6,2353.0,0.891]